[Event "FIDE World Senior-Women CC 2023"]
[Site "Terrasini"]
[Date "2023.11.05"]
[Round "11.3"]
[White "Makropoulou, Marina"]
[Black "Tereladze, Sopio"]
[Result "1/2-1/2"]
[ECO "C55"]
[WhiteElo "2081"]
[BlackElo "2215"]
[Annotator "ChessBase"]
[PlyCount "208"]
[EventDate "2023.10.22"]
[EventType "swiss"]
[EventCountry "ITA"]
[SourceTitle "playchess.com"]
[Source "ChessBase"]
[SourceQuality "1"]
[TimeControl "40/5400+30:1800+30"]

1. e4 {[%emt 0:00:02]} e5 {[%emt 0:00:10]} 2. Nf3 {[%emt 0:00:10]} Nc6 {[%emt 0:00:03]} 3. Bc4 {[%emt 0:00:14]} Nf6 {[%emt 0:00:05]} 4. d3 {[%emt 0:00:32]} Be7 {[%emt 0:00:23]} 5. O-O {[%emt 0:00:31]} O-O {[%emt 0:01:10]} 6. Re1 {[%emt 0:00:51]} d6 {[%emt 0:00:23]} 7. a4 {[%emt 0:00:13]} Be6 {[%emt 0:02:50]} 8. Nbd2 {[%emt 0:02:33]} Qd7 {[%emt 0:05:49]} 9. c3 {[%emt 0:01:43]} Bxc4 {[%emt 0:03:51]} 10. Nxc4 {[%emt 0:01:07]} a5 {[%emt 0:02:28]} 11. h3 {[%emt 0:01:19]} Rfe8 {[%emt 0:05:17]} 12. Bg5 {[%emt 0:13:20]} h6 {[%emt 0:04:16]} 13. Bxf6 {[%emt 0:04:12]} Bxf6 {[%emt 0:00:09]} 14. Ne3 {[%emt 0:00:12]} g6 {[%emt 0:01:29]} 15. Qb3 {[%emt 0:01:59]} Bg7 {[%emt 0:01:00]} 16. Nd5 {[%emt 0:04:53]} Rab8 {[%emt 0:04:31]} 17. Qb5 {[%emt 0:03:33]} Red8 {[%emt 0:17:39]} 18. Nd2 {[%emt 0:00:53]} f5 {[%emt 0:10:34]} 19. Nc4 {[%emt 0:00:39]} f4 {[%emt 0:00:33]} 20. f3 {[%emt 0:00:13]} h5 {[%emt 0:10:16]} 21. Nxa5 {[%emt 0:02:01]} Nxa5 {[%emt 0:02:46]} 22. Qxa5 {[%emt 0:00:02]} c6 {[%emt 0:00:48]} 23. Nb6 {[%emt 0:02:02]} Qe7 {[%emt 0:00:41]} 24. c4 {[%emt 0:02:18]} Bf6 {[%emt 0:01:01]} 25. Kf1 {[%emt 0:05:37]} Bh4 {[%emt 0:03:00]} 26. Rec1 {[%emt 0:36:15]} g5 {[%emt 0:04:15]} 27. Ke2 {[%emt 0:16:36]} g4 {[%emt 0:01:11]} 28. hxg4 {[%emt 0:00:00]} hxg4 {[%emt 0:00:01]} 29. Rh1 {[%emt 0:00:00]} Kf7 {[%emt 0:02:10]} 30. Kd2 {[%emt 0:00:00]} Rg8 {[%emt 0:01:05]} 31. Raf1 {[%emt 0:00:00]} gxf3 {[%emt 0:02:06]} 32. gxf3 {[%emt 0:00:00]} Rg2+ {[%emt 0:05:41]} 33. Kc3 {[%emt 0:00:00]} Rbg8 {[%emt 0:00:40]} 34. Qa7 {[%emt 0:00:00]} Bf2 {[%emt 0:00:56]} 35. Rxf2 {[%emt 0:00:00]} Rxf2 {[%emt 0:00:09]} 36. Nc8 {[%emt 0:00:00]} Qe6 {[%emt 0:03:20]} 37. Qxf2 {[%emt 0:00:00]} Qxc8 {[%emt 0:00:10]} 38. Rh7+ {[%emt 0:00:00]} Rg7 {[%emt 0:00:30]} 39. Qh4 {[%emt 0:00:00]} Rxh7 {[%emt 0:01:26]} 40. Qxh7+ {[%emt 0:00:00]} Kf6 {[%emt 0:00:20]} 41. Qh6+ {[%emt 0:29:58]} Kf7 {[%emt 0:34:38]} 42. Qxd6 {[%emt 0:00:00]} Qh3 {[%emt 0:00:00]} 43. Qxe5 {[%emt 0:00:00]} Qxf3 {[%emt 0:00:00]} 44. Qc7+ {[%emt 0:00:00]} Kg6 {[%emt 0:00:00]} 45. e5 {[%emt 0:00:00]} Qe3 {[%emt 0:00:00]} 46. e6 {[%emt 0:00:00]} Qc1+ {[%emt 0:00:00]} 47. Kb3 {[%emt 0:00:00]} Qd1+ {[%emt 0:00:00]} 48. Kb4 {[%emt 0:00:00]} Qd2+ {[%emt 0:00:00]} 49. Kc5 {[%emt 0:00:00]} Qe3+ {[%emt 0:00:00]} 50. d4 {[%emt 0:00:00]} b6+ {[%emt 0:00:00]} 51. Kxb6 {[%emt 0:00:00]} Qxd4+ {[%emt 0:00:00]} 52. Kxc6 {[%emt 0:02:02]} Qxc4+ {[%emt 0:00:00]} 53. Kd7 {[%emt 0:01:42]} Qxa4+ {[%emt 0:00:00]} 54. Kd8 {[%emt 0:01:47]} Qa8+ {[%emt 0:00:00]} 55. Kd7 {[%emt 0:03:24]} Qd5+ {[%emt 0:00:00]} 56. Qd6 {[%emt 0:00:25]} Qb7+ {[%emt 0:00:00]} 57. Kd8 {[%emt 0:00:24]} Qa8+ {[%emt 0:00:06]} 58. Kd7 {[%emt 0:00:39]} Qb7+ {[%emt 0:00:27]} 59. Ke8 {[%emt 0:01:23]} Qc8+ {[%emt 0:00:40]} 60. Ke7 {[%emt 0:00:01]} Qb7+ {[%emt 0:00:21]} 61. Kd8 {[%emt 0:00:59]} Qa8+ {[%emt 0:00:14]} 62. Kd7 {[%emt 0:00:13]} Qb7+ {[%emt 0:01:42]} 63. Qc7 {[%emt 0:00:11]} Qd5+ {[%emt 0:00:15]} 64. Ke7 {[%emt 0:00:23]} f3 {[%emt 0:01:12]} 65. Qg3+ {[%emt 0:02:18]} Qg5+ {[%emt 0:01:03]} 66. Qxg5+ {[%emt 0:00:01]} Kxg5 {[%emt 0:00:01]} 67. Kd8 {[%emt 0:00:43]} f2 {[%emt 0:00:04]} 68. e7 {[%emt 0:00:01]} f1=Q {[%emt 0:00:11]} 69. e8=Q {[%emt 0:00:01]} Qd3+ {[%emt 0:01:21]} 70. Qd7 {[%emt 0:00:11]} Qb3 {[%emt 0:00:17]} 71. Qd4 {[%emt 0:01:06]} Kf5 {[%emt 0:00:55]} 72. Kc7 {[%emt 0:00:32]} Ke6 {[%emt 0:01:28]} 73. Qe4+ {[%emt 0:01:24]} Kf6 {[%emt 0:00:39]} 74. Qd4+ {[%emt 0:00:47]} Kf5 {[%emt 0:01:14]} 75. Kc6 {[%emt 0:00:31]} Qe6+ {[%emt 0:00:51]} 76. Kc5 {[%emt 0:00:22]} Qe7+ {[%emt 0:02:25]} 77. Kc4 {[%emt 0:00:10]} Qe1 {[%emt 0:00:39]} 78. Qd5+ {[%emt 0:01:35]} Kf6 {[%emt 0:00:17]} 79. b4 {[%emt 0:00:24]} Ke7 {[%emt 0:00:31]} 80. Kc5 {[%emt 0:00:33]} Qc3+ {[%emt 0:01:55]} 81. Kb5 {[%emt 0:00:03]} Qa3 {[%emt 0:00:16]} 82. Qd4 {[%emt 0:00:27]} Qa8 {[%emt 0:00:40]} 83. Qg7+ {[%emt 0:01:29]} Kd6 {[%emt 0:00:49]} 84. Qf6+ {[%emt 0:00:15]} Kd7 {[%emt 0:00:04]} 85. Qf7+ {[%emt 0:00:22]} Kd6 {[%emt 0:00:08]} 86. Qf4+ {[%emt 0:00:14]} Kd7 {[%emt 0:00:07]} 87. Qd4+ {[%emt 0:00:20]} Kc7 {[%emt 0:00:17]} 88. Qe5+ {[%emt 0:01:04]} Kd7 {[%emt 0:00:09]} 89. Qf5+ {[%emt 0:01:17]} Kd6 {[%emt 0:00:21]} 90. Qg6+ {[%emt 0:00:25]} Kd7 {[%emt 0:00:13]} 91. Qh7+ {[%emt 0:00:47]} Kd6 {[%emt 0:04:18]} 92. Qd3+ {[%emt 0:00:32]} Kc7 {[%emt 0:00:00]} 93. Qc3+ {[%emt 0:00:16]} Kd7 {[%emt 0:00:00]} 94. Qd4+ {[%emt 0:00:08]} Kc7 {[%emt 0:00:00]} 95. Qe5+ {[%emt 0:01:13]} Kd7 {[%emt 0:00:00]} 96. Kc5 {[%emt 0:00:25]} Qc6+ {[%emt 0:00:00]} 97. Kd4 {[%emt 0:00:09]} Qd6+ {[%emt 0:00:00]} 98. Qd5 {[%emt 0:00:01]} Kc7 {[%emt 0:00:00]} 99. Qxd6+ {[%emt 0:00:34]} Kxd6 {[%emt 0:00:00]} 100. Kc4 {[%emt 0:00:00]} Kc6 {[%emt 0:00:00]} 101. b5+ {[%emt 0:00:55]} Kb7 {[%emt 0:00:00]} 102. Kc5 {[%emt 0:00:04]} Kc7 {[%emt 0:00:00]} 103. b6+ {[%emt 0:00:04]} Kb8 {[%emt 0:00:00]} 104. Kc6 {[%emt 0:00:06]} Kc8 {[%emt 0:00:00]} 1/2-1/2

[Event "FIDE World Senior-Women CC 2023"]
[Site "Terrasini"]
[Date "2023.11.05"]
[Round "11.4"]
[White "Krasenkowa, Elena"]
[Black "Folkova, Martina"]
[Result "1-0"]
[ECO "A14"]
[WhiteElo "2089"]
[BlackElo "2022"]
[Annotator "ChessBase"]
[PlyCount "297"]
[EventDate "2023.10.22"]
[EventType "swiss"]
[EventCountry "ITA"]
[SourceTitle "playchess.com"]
[Source "ChessBase"]
[SourceQuality "1"]
[TimeControl "40/5400+30:1800+30"]

1. c4 {[%emt 0:00:02]} e6 {[%emt 0:00:13]} 2. g3 {[%emt 0:00:10]} d5 {[%emt 0:00:46]} 3. Bg2 {[%emt 0:00:12]} Nf6 {[%emt 0:00:41]} 4. Nf3 {[%emt 0:00:15]} Nbd7 {[%emt 0:02:51]} 5. b3 {[%emt 0:03:36]} Be7 {[%emt 0:09:44]} 6. Bb2 {[%emt 0:00:08]} O-O {[%emt 0:00:37]} 7. O-O {[%emt 0:00:16]} b6 {[%emt 0:10:30]} 8. cxd5 {[%emt 0:00:23]} exd5 {[%emt 0:00:15]} 9. Nd4 {[%emt 0:00:08]} Bb7 {[%emt 0:04:56]} 10. Nf5 {[%emt 0:00:42]} Re8 {[%emt 0:00:30]} 11. Nxe7+ {[%emt 0:02:47]} Qxe7 {[%emt 0:00:06]} 12. Re1 {[%emt 0:00:40]} Rad8 {[%emt 0:08:27]} 13. Qc2 {[%emt 0:07:17]} Ne5 {[%emt 0:11:20]} 14. Qf5 {[%emt 0:28:52]} Ba6 {[%emt 0:09:29]} 15. Bxe5 {[%emt 0:06:21]} Qxe5 {[%emt 0:00:08]} 16. Qxe5 {[%emt 0:00:04]} Rxe5 {[%emt 0:00:04]} 17. e3 {[%emt 0:00:11]} d4 {[%emt 0:07:28]} 18. Na3 {[%emt 0:03:00]} dxe3 {[%emt 0:02:12]} 19. dxe3 {[%emt 0:00:05]} Kf8 {[%emt 0:01:08]} 20. Nc2 {[%emt 0:03:00]} Rd2 {[%emt 0:02:35]} 21. Nb4 {[%emt 0:01:44]} Be2 {[%emt 0:04:40]} 22. Nc6 {[%emt 0:02:55]} Rc5 {[%emt 0:00:53]} 23. Nd4 {[%emt 0:00:24]} Ba6 {[%emt 0:01:38]} 24. b4 {[%emt 0:01:59]} Rc3 {[%emt 0:06:00]} 25. b5 {[%emt 0:00:16]} Bc8 {[%emt 0:00:16]} 26. h3 {[%emt 0:05:12]} Ra3 {[%emt 0:01:57]} 27. Rec1 {[%emt 0:00:27]} Raxa2 {[%emt 0:00:44]} 28. Rxa2 {[%emt 0:00:04]} Rxa2 {[%emt 0:00:03]} 29. Rxc7 {[%emt 0:00:04]} Be6 {[%emt 0:01:29]} 30. g4 {[%emt 0:02:48]} Ne8 {[%emt 0:02:16]} 31. Rb7 {[%emt 0:01:02]} Nd6 {[%emt 0:00:34]} 32. Rc7 {[%emt 0:02:00]} a6 {[%emt 0:01:05]} 33. Rc6 {[%emt 0:04:32]} Ke7 {[%emt 0:02:30]} 34. Rxb6 {[%emt 0:00:20]} axb5 {[%emt 0:00:29]} 35. Nc6+ {[%emt 0:00:37]} Kf6 {[%emt 0:01:04]} 36. e4 {[%emt 0:00:54]} Nc4 {[%emt 0:00:58]} 37. Rxb5 {[%emt 0:00:27]} g5 {[%emt 0:00:16]} 38. e5+ {[%emt 0:04:17]} Kg7 {[%emt 0:00:01]} 39. Rc5 {[%emt 0:02:18]} Rd2 {[%emt 0:03:27]} 40. Be4 {[%emt 0:01:40]} Rd1+ {[%emt 0:00:35]} 41. Kg2 {[%emt 0:30:14]} Rc1 {[%emt 0:12:56]} 42. Kh2 {[%emt 0:00:00]} Rd1 {[%emt 0:05:36]} 43. Ne7 {[%emt 0:00:00]} Re1 {[%emt 0:03:22]} 44. f3 {[%emt 0:00:00]} Re2+ {[%emt 0:05:39]} 45. Kg1 {[%emt 0:00:00]} Nd2 {[%emt 0:00:42]} 46. Bc6 {[%emt 0:00:00]} Nb3 {[%emt 0:01:08]} 47. Rb5 {[%emt 0:00:00]} Nd4 {[%emt 0:01:18]} 48. Rc5 {[%emt 0:03:23]} Nb3 {[%emt 0:00:19]} 49. Kf1 {[%emt 0:01:47]} Ra2 {[%emt 0:00:46]} 50. Rc3 {[%emt 0:00:46]} Bc4+ {[%emt 0:03:33]} 51. Kg1 {[%emt 0:00:23]} Ra1+ {[%emt 0:00:23]} 52. Kf2 {[%emt 0:00:51]} Ra2+ {[%emt 0:00:47]} 53. Kg3 {[%emt 0:01:25]} Nd2 {[%emt 0:00:16]} 54. Nf5+ {[%emt 0:01:37]} Kf8 {[%emt 0:00:17]} 55. Ne3 {[%emt 0:00:04]} Be6 {[%emt 0:00:38]} 56. Rd3 {[%emt 0:03:51]} Kg7 {[%emt 0:01:05]} 57. Bd5 {[%emt 0:02:10]} Bxd5 {[%emt 0:00:02]} 58. Rxd5 {[%emt 0:00:04]} h6 {[%emt 0:00:49]} 59. Rd6 {[%emt 0:01:46]} Rb2 {[%emt 0:01:06]} 60. Rd4 {[%emt 0:00:58]} Kh7 {[%emt 0:01:10]} 61. f4 {[%emt 0:00:24]} Rb3 {[%emt 0:00:18]} 62. Kf2 {[%emt 0:02:55]} gxf4 {[%emt 0:00:38]} 63. Rxf4 {[%emt 0:00:23]} Kg8 {[%emt 0:00:04]} 64. Rd4 {[%emt 0:00:32]} Nb1 {[%emt 0:00:23]} 65. h4 {[%emt 0:00:11]} Rb2+ {[%emt 0:00:37]} 66. Kg3 {[%emt 0:00:52]} Re2 {[%emt 0:00:37]} 67. Rd8+ {[%emt 0:01:00]} Kh7 {[%emt 0:00:09]} 68. Rd3 {[%emt 0:00:40]} Nd2 {[%emt 0:00:21]} 69. h5 {[%emt 0:06:35]} Nb1 {[%emt 0:01:12]} 70. Kf3 {[%emt 0:00:00]} Rh2 {[%emt 0:00:23]} 71. Kg3 {[%emt 0:00:00]} Re2 {[%emt 0:00:10]} 72. Nf5 {[%emt 0:00:00]} Rxe5 {[%emt 0:00:39]} 73. Rd7 {[%emt 0:00:00]} Re6 {[%emt 0:01:27]} 74. Rxf7+ {[%emt 0:00:00]} Kh8 {[%emt 0:00:28]} 75. Rb7 {[%emt 0:00:06]} Nc3 {[%emt 0:00:12]} 76. Ne7 {[%emt 0:00:53]} Ne2+ {[%emt 0:00:45]} 77. Kf2 {[%emt 0:00:12]} Nf4 {[%emt 0:00:52]} 78. Kf3 {[%emt 0:00:12]} Nh3 {[%emt 0:00:33]} 79. Ng6+ {[%emt 0:00:12]} Kg8 {[%emt 0:00:13]} 80. Rb8+ {[%emt 0:00:20]} Kg7 {[%emt 0:00:07]} 81. Nh4 {[%emt 0:00:32]} Ng5+ {[%emt 0:00:12]} 82. Kf4 {[%emt 0:00:22]} Kf6 {[%emt 0:01:03]} 83. Rf8+ {[%emt 0:00:19]} Kg7 {[%emt 0:00:20]} 84. Ra8 {[%emt 0:00:42]} Kf6 {[%emt 0:00:08]} 85. Nf5 {[%emt 0:00:26]} Re4+ {[%emt 0:00:42]} 86. Kg3 {[%emt 0:00:03]} Rb4 {[%emt 0:02:35]} 87. Rf8+ {[%emt 0:01:47]} Ke5 {[%emt 0:00:10]} 88. Re8+ {[%emt 0:00:30]} Kf6 {[%emt 0:00:19]} 89. Nxh6 {[%emt 0:00:16]} Rb3+ {[%emt 0:00:00]} 90. Kg2 {[%emt 0:00:19]} Rb2+ {[%emt 0:00:13]} 91. Kf1 {[%emt 0:00:09]} Nh3 {[%emt 0:00:45]} 92. Nf5 {[%emt 0:01:18]} Rf2+ {[%emt 0:00:16]} 93. Ke1 {[%emt 0:00:01]} Rg2 {[%emt 0:00:14]} 94. h6 {[%emt 0:00:27]} Ng5 {[%emt 0:00:31]} 95. Rf8+ {[%emt 0:00:52]} Ke5 {[%emt 0:03:37]} 96. Ne3 {[%emt 0:00:08]} Rg3 {[%emt 0:00:00]} 97. Kf2 {[%emt 0:00:16]} Ne4+ {[%emt 0:00:00]} 98. Ke2 {[%emt 0:00:20]} Rh3 {[%emt 0:00:00]} 99. Re8+ {[%emt 0:01:06]} Kf4 {[%emt 0:00:00]} 100. Nd5+ {[%emt 0:00:19]} Kxg4 {[%emt 0:00:42]} 101. Rxe4+ {[%emt 0:00:01]} Kg5 {[%emt 0:00:24]} 102. Nf4 {[%emt 0:01:21]} Rh2+ {[%emt 0:00:02]} 103. Kf3 {[%emt 0:00:05]} Kxh6 {[%emt 0:00:17]} 104. Re7 {[%emt 0:00:06]} Ra2 {[%emt 0:00:24]} 105. Kg4 {[%emt 0:00:07]} Ra5 {[%emt 0:00:21]} 106. Re4 {[%emt 0:00:38]} Rg5+ {[%emt 0:00:12]} 107. Kf3 {[%emt 0:00:04]} Ra5 {[%emt 0:00:03]} 108. Re6+ {[%emt 0:00:06]} Kg7 {[%emt 0:00:07]} 109. Kg4 {[%emt 0:00:03]} Kf7 {[%emt 0:00:26]} 110. Rb6 {[%emt 0:00:04]} Kg7 {[%emt 0:00:18]} 111. Nd3 {[%emt 0:00:09]} Ra4+ {[%emt 0:00:20]} 112. Kf5 {[%emt 0:00:02]} Ra5+ {[%emt 0:00:06]} 113. Ne5 {[%emt 0:00:02]} Ra1 {[%emt 0:00:36]} 114. Rb7+ {[%emt 0:00:16]} Kg8 {[%emt 0:00:55]} 115. Ng4 {[%emt 0:00:19]} Kf8 {[%emt 0:01:19]} 116. Rc7 {[%emt 0:00:41]} Rb1 {[%emt 0:00:07]} 117. Ra7 {[%emt 0:00:14]} Rc1 {[%emt 0:00:09]} 118. Ne5 {[%emt 0:00:07]} Rb1 {[%emt 0:00:21]} 119. Ng6+ {[%emt 0:01:10]} Ke8 {[%emt 0:01:06]} 120. Nf4 {[%emt 0:00:16]} Rf1 {[%emt 0:01:45]} 121. Ke6 {[%emt 0:00:29]} Re1+ {[%emt 0:00:09]} 122. Kd6 {[%emt 0:00:06]} Rd1+ {[%emt 0:00:22]} 123. Nd5 {[%emt 0:00:03]} Re1 {[%emt 0:00:46]} 124. Nf4 {[%emt 0:01:06]} Rd1+ {[%emt 0:00:17]} 125. Nd5 {[%emt 0:00:10]} Re1 {[%emt 0:00:04]} 126. Nf6+ {[%emt 0:00:09]} Kf8 {[%emt 0:00:08]} 127. Nd7+ {[%emt 0:00:03]} Kg8 {[%emt 0:00:13]} 128. Ne5 {[%emt 0:00:05]} Rd1+ {[%emt 0:00:40]} 129. Ke6 {[%emt 0:00:04]} Rf1 {[%emt 0:00:17]} 130. Re7 {[%emt 0:00:05]} Ra1 {[%emt 0:00:38]} 131. Rd7 {[%emt 0:10:42]} Ra6+ {[%emt 0:00:33]} 132. Kf5 {[%emt 0:00:00]} Ra1 {[%emt 0:00:07]} 133. Ng4 {[%emt 0:00:00]} Rf1+ {[%emt 0:00:40]} 134. Kg6 {[%emt 0:00:00]} Kf8 {[%emt 0:01:02]} 135. Rh7 {[%emt 0:00:00]} Ke8 {[%emt 0:00:10]} 136. Rg7 {[%emt 0:00:00]} Kd8 {[%emt 0:00:13]} 137. Ra7 {[%emt 0:00:00]} Kc8 {[%emt 0:00:07]} 138. Ne3 {[%emt 0:00:00]} Rf2 {[%emt 0:00:07]} 139. Nf5 {[%emt 0:00:00]} Rc2 {[%emt 0:00:33]} 140. Kf6 {[%emt 0:00:00]} Rc6+ {[%emt 0:00:13]} 141. Ke5 {[%emt 0:00:00]} Rc1 {[%emt 0:00:32]} 142. Nd4 {[%emt 0:00:00]} Kb8 {[%emt 0:00:19]} 143. Rd7 {[%emt 0:00:00]} Kc8 {[%emt 0:00:07]} 144. Rf7 {[%emt 0:00:00]} Rh1 {[%emt 0:00:43]} 145. Kd6 {[%emt 0:00:00]} Rg1 {[%emt 0:00:37]} 146. Re7 {[%emt 0:00:00]} Rh1 {[%emt 0:00:12]} 147. Rc7+ {[%emt 0:00:00]} Kd8 {[%emt 0:02:01]} 148. Ne6+ {[%emt 0:00:00]} Ke8 {[%emt 0:00:07]} 149. Re7# {[%emt 0:00:00]} 1-0

[Event "FIDE World Senior-Women CC 2023"]
[Site "Terrasini"]
[Date "2023.11.05"]
[Round "11.5"]
[White "Gaprindashvili, Nona"]
[Black "Ni, Polina"]
[Result "1-0"]
[ECO "D22"]
[WhiteElo "2267"]
[BlackElo "1866"]
[Annotator "RC"]
[PlyCount "49"]
[EventDate "2023.10.22"]
[EventType "swiss"]
[EventCountry "ITA"]
[SourceTitle "playchess.com"]
[Source "ChessBase"]
[SourceQuality "1"]
[TimeControl "40/5400+30:1800+30"]

1. d4 {[%emt 0:00:08]} d5 {[%emt 0:00:04]} 2. c4 {[%emt 0:00:09]} dxc4 {[%emt 0:00:03]} 3. Nf3 {[%emt 0:00:08]} a6 {[%emt 0:00:13]} 4. e3 {[%emt 0:00:09]} Bg4 {[%emt 0:02:31]} 5. Bxc4 {[%emt 0:00:20]} e6 {[%emt 0:01:05]} 6. h3 {[%emt 0:01:31]} Bxf3 {[%emt 0:05:55]} 7. Qxf3 {[%emt 0:00:04]} Nc6 {[%emt 0:01:32]} 8. O-O {[%emt 0:00:17]} Nf6 {[%emt 0:03:20]} 9. Rd1 {[%emt 0:04:50]} Be7 {[%emt 0:10:01]} 10. Nc3 {[%emt 0:05:32]} O-O {[%emt 0:07:44]} 11. Bb3 {[%emt 0:04:44]} Qc8 {[%emt 0:05:44]} 12. e4 {[%emt 0:13:10]} e5 {[%emt 0:07:20]} 13. dxe5 {[%emt 0:00:20]} Nxe5 {[%emt 0:00:21]} 14. Qe2 {[%emt 0:00:09]} c6 {[%emt 0:14:52]} 15. f4 {[%emt 0:01:12]} Ng6 {[%emt 0:07:31]} 16. e5 {[%emt 0:03:45]} Bc5+ {[%emt 0:05:27]} 17. Kh1 {[%emt 0:00:18]} Re8 {[%emt 0:06:54]} 18. Qc4 {[%emt 0:01:59]} Nxe5 {[%emt 0:03:33]} 19. fxe5 {[%emt 0:02:59]} Rxe5 {[%emt 0:00:41]} 20. Bf4 {[%emt 0:00:04]} Rh5 {[%emt 0:02:00]} 21. Qxf7+ {[%emt 0:03:04]} Kh8 {[%emt 0:00:28]} 22. Be6 {[%emt 0:00:42]} Qf8 {[%emt 0:03:32]} 23. Qxf8+ {[%emt 0:02:53]} Rxf8 {[%emt 0:00:03]} 24. g4 {[%emt 0:04:53]} Rxh3+ {[%emt 0:03:34]} 25. Kg2 {[%emt 0:00:02]} 1-0